bitfinex-derivatives/quotes_ETHF0:USTF0_20250504
["timestamp","ask_amount","ask_price","bid_price","bid_amount"]
[1746400704275,3.52907067,1813.6,1813.5,5.06619763]
[1746400704575,3.00737701,1813.6,1813.5,3.688]
[1746400704771,4.10998701,1813.6,1813.5,3.688]
[1746400705468,12.61489206,1813.6,1813.5,3.688]
[1746400705669,12.61487892,1813.6,1813.5,3.688]
[1746400707375,12.6147915,1813.6,1813.5,3.688]
[1746400708077,7.6147915,1813.6,1813.5,3.688]
[1746400708478,7.31778701,1813.6,1813.5,3.688]
[1746400709879,10.94364964,1813.6,1813.5,3.688]
[1746400711881,10.94364964,1813.6,1813.5,3.96352763]
[1746400713878,7.31778701,1813.6,1813.5,3.96352763]
[1746400715474,7.31778701,1813.6,1813.5,3.688]
[1746400717486,7.31778701,1813.6,1813.5,3.96352763]
[1746400723094,6.51958701,1813.6,1813.5,3.96352763]
[1746400723291,7.30568701,1813.6,1813.5,3.96352763]
[1746400725393,7.60306769,1813.6,1813.5,3.688]
[1746400725790,7.6030527,1813.6,1813.5,3.688]
[1746400727496,7.60331264,1813.6,1813.5,3.688]
[1746400728196,7.60331264,1813.6,1813.5,3.96352763]
[1746400729191,7.30568701,1813.6,1813.5,3.96352763]
[1746400729497,7.60365297,1813.6,1813.5,5.66232763]
[1746400730197,8.02877374,1813.6,1813.5,5.66232763]
[1746400730897,8.03115697,1813.6,1813.5,5.66232763]
[1746400732604,8.0312841,1813.6,1813.5,5.66232763]
[1746400734202,8.0312841,1813.6,1813.5,2.43533416]
[1746400734504,14.69946612,1813.6,1813.5,2.15980653]
[1746400735500,19.69946612,1813.6,1813.5,0.96229653]
[1746400735707,14.69946612,1813.6,1813.5,0.96229653]
[1746400735999,14.70024779,1813.6,1813.5,0.96229653]
[1746400736199,1.10279,1813.3,1813.2,0.27552763]
[1746400736391,5.63112779,1813.3,1813.2,0.27552763]
[1746400736591,1.10285,1813.2,1813.1,3.50892763]
[1746400736799,2.78185,1813.2,1813.1,3.50892763]
[1746400737704,3.37632701,1813.2,1813.1,3.50892763]
[1746400737901,3.37632701,1813.2,1813.1,0.27552763]
[1746400738402,1.10291,1813.1,1813.0,3.96352763]
[1746400738598,2.81501,1813.1,1813.0,3.96352763]
[1746400739402,2.81501,1813.1,1813.0,3.688]
[1746400739597,4.13467879,1813.1,1813.0,3.96352763]
[1746400740805,4.13472524,1813.1,1813.0,3.96352763]
[1746400741504,7.75872524,1813.1,1813.0,3.96352763]
[1746400742105,7.75856123,1813.1,1813.0,3.96352763]
[1746400743697,7.03348701,1813.1,1813.0,3.96352763]
[1746400743904,7.75808188,1813.1,1813.0,3.96352763]
[1746400744099,7.33145388,1813.1,1813.0,3.96352763]
[1746400744406,7.03348701,1813.1,1813.0,3.96352763]
[1746400744712,7.33145168,1813.1,1813.0,3.96352763]
[1746400745306,7.75794285,1813.1,1813.0,3.96352763]
[1746400745507,7.75788391,1813.1,1813.0,3.96352763]
[1746400746202,7.33141749,1813.1,1813.0,3.96352763]
[1746400746400,7.03348701,1813.1,1813.0,3.96352763]
[1746400746707,7.33147459,1813.1,1813.0,3.96352763]
[1746400747102,7.03348701,1813.1,1813.0,3.96352763]
[1746400747306,7.33150944,1813.1,1813.0,3.96352763]
[1746400747508,7.03348701,1813.1,1813.0,3.96352763]
[1746400747807,7.33140155,1813.1,1813.0,3.96352763]
[1746400748306,7.03348701,1813.1,1813.0,3.96352763]
[1746400748807,7.33134958,1813.1,1813.0,3.96352763]
[1746400749405,3.70734958,1813.1,1813.0,3.96352763]
[1746400749609,13.58115227,1813.1,1813.0,3.688]
[1746400750209,13.58115227,1813.1,1813.0,3.96352763]
[1746400750510,13.58123763,1813.1,1813.0,3.688]
[1746400752211,13.5802808,1813.1,1813.0,3.688]
[1746400753115,19.69771687,1813.1,1813.0,3.688]
[1746400753311,19.69771687,1813.1,1813.0,3.96352763]
[1746400753912,19.69801223,1813.1,1813.0,3.96352763]
[1746400755511,19.69922244,1813.1,1813.0,3.96352763]
[1746400757212,19.69949886,1813.1,1813.0,3.96352763]
[1746400758915,19.69953933,1813.1,1813.0,3.96352763]
[1746400759416,23.36082583,1813.1,1813.0,3.96352763]
[1746400760812,23.36059534,1813.1,1813.0,3.96352763]
[1746400761114,23.36059534,1813.1,1813.0,0.27552763]
[1746400762119,23.36059534,1813.1,1813.0,3.96352763]
[1746400762415,23.36052078,1813.1,1813.0,3.96352763]
[1746400763910,23.06176589,1813.1,1813.0,3.96352763]
[1746400764113,23.36051992,1813.1,1813.0,0.27552763]
[1746400765708,23.36099299,1813.1,1813.0,0.27552763]
[1746400767420,23.3609757,1813.1,1813.0,0.27552763]
[1746400768418,13.18199384,1813.1,1813.0,0.27552763]
[1746400768618,13.18199384,1813.1,1813.0,3.52432763]
[1746400769017,13.18214763,1813.1,1813.0,3.52432763]
[1746400769222,13.18214763,1813.1,1813.0,7.21232763]
[1746400769420,12.7566098,1813.1,1813.0,7.21232763]
[1746400770721,12.75660504,1813.1,1813.0,7.21232763]
[1746400771022,6.93260504,1813.1,1813.0,7.21232763]
[1746400771219,2.56787478,1813.1,1813.0,7.21232763]
[1746400772423,2.56781855,1813.1,1813.0,7.21232763]
[1746400774127,2.56785397,1813.1,1813.0,7.21232763]
[1746400775527,4.28665397,1813.1,1813.0,4.5236]
[1746400776227,4.28665397,1813.1,1813.0,7.0148]
[1746400776625,4.2866283,1813.1,1813.0,7.0148]
[1746400777726,4.28699777,1813.1,1813.0,7.0148]
[1746400779126,3.98729746,1813.1,1813.0,7.0148]
[1746400779329,4.28727294,1813.1,1813.0,7.0148]
[1746400780128,4.28727294,1813.1,1813.0,7.29032763]
[1746400780829,4.28763665,1813.1,1813.0,7.29032763]
[1746400781025,7.54944122,1813.1,1813.0,7.29032763]
[1746400781229,5.53030203,1813.1,1813.0,13.39329763]
[1746400781422,5.53030203,1813.1,1813.0,12.29032763]
[1746400781730,5.53030203,1813.1,1813.0,54.19329763]
[1746400782227,6.63321203,1813.1,1813.0,54.19329763]
[1746400782426,6.63321203,1813.1,1813.0,53.09032763]
[1746400782627,6.63321203,1813.1,1813.0,54.19329763]
[1746400783925,6.63321203,1813.1,1813.0,53.09032763]
[1746400784132,6.63321203,1813.1,1813.0,48.09032763]
[1746400784927,2.26849746,1813.1,1813.0,48.09032763]
[1746400788030,2.26849746,1813.1,1813.0,7.29032763]
[1746400788224,3.94979746,1813.1,1813.0,7.29032763]
[1746400789238,4.24913871,1813.1,1813.0,3.688]
[1746400789530,9.24913871,1813.1,1813.0,3.688]
[1746400791133,4.24913871,1813.1,1813.0,3.688]
[1746400792037,1.10314,1812.8,1812.6,3.00192763]
[1746400792238,4.31094,1812.8,1812.6,3.00192763]
[1746400792534,2.79988746,1812.7,1812.6,3.00192763]
[1746400792935,3.90304746,1812.7,1812.6,3.00192763]
[1746400793332,3.90304746,1812.7,1812.6,1.89872763]
[1746400795336,3.90304746,1812.7,1812.6,0.27552763]
[1746400795535,4.70934746,1812.7,1812.6,0.27552763]
[1746400798330,5.51134746,1812.7,1812.6,0.27552763]
[1746400804850,5.51134746,1812.7,1812.5,45.55082763]
[1746400804851,1.10322,1812.6,1812.5,45.55082763]
[1746400805147,5.93842,1812.6,1812.5,3.688]
[1746400805341,7.40292675,1812.6,1812.5,3.688]
[1746400806449,7.10400746,1812.6,1812.5,3.688]
[1746400806649,7.40289612,1812.6,1812.5,3.688]
[1746400806846,7.10400746,1812.6,1812.5,3.688]
[1746400807045,10.72000746,1812.6,1812.5,3.688]
[1746400808954,6.00078746,1812.6,1812.5,5.06680763]
[1746400809249,2.79298746,1812.6,1812.5,5.06680763]
[1746400809748,2.79298746,1812.6,1812.5,6.71720763]
[1746400811359,3.89620746,1812.6,1812.5,6.71720763]
[1746400811553,3.89620746,1812.6,1812.5,5.61392763]
[1746400812552,7.10400746,1812.6,1812.5,3.96352763]
[1746400813156,3.89620746,1812.6,1812.5,3.96352763]
[1746400813354,2.79298746,1812.6,1812.5,5.06680763]
[1746400813651,1.16558746,1812.6,1812.5,5.06680763]
[1746400813845,1.16558746,1812.6,1812.5,6.75500763]
[1746400815349,2.26880746,1812.6,1812.5,6.75500763]
[1746400815749,1.16558746,1812.6,1812.5,6.75500763]
[1746400816150,2.26880746,1812.6,1812.5,5.06680763]
[1746400816352,2.90218746,1812.6,1812.5,5.06680763]
[1746400816652,2.90218746,1812.6,1812.5,6.75500763]
[1746400816840,1.16558746,1812.6,1812.5,6.75500763]
[1746400817449,2.26880746,1812.6,1812.5,5.3762]
[1746400817655,2.26880746,1812.6,1812.5,3.688]
[1746400817656,2.5681665,1812.6,1812.5,3.688]
[1746400817860,5.7759665,1812.6,1812.5,3.688]
[1746400818153,7.43135036,1812.6,1812.5,3.688]
[1746400818850,18.25548974,1812.6,1812.5,0.45406]
[1746400819055,18.25548974,1812.6,1812.1,7.35296812]
[1746400819056,1.10346,1812.2,1812.1,2.17142812]
[1746400819252,14.05072399,1812.2,1812.0,11.02921494]
[1746400819452,1.10358,1812.0,1811.9,14.6083389]
[1746400819645,1.10358,1812.0,1811.8,7.35921272]
[1746400819646,1.10364,1811.9,1811.8,7.35921272]
[1746400819847,5.44369317,1811.9,1811.8,7.35921272]
[1746400820047,10.88658136,1811.9,1811.8,7.35921272]
[1746400820243,10.88658136,1811.9,1811.8,5.95359272]
[1746400820451,1.1037,1811.8,1811.7,7.62284494]
[1746400820749,8.65155317,1811.8,1811.7,7.62284494]
[1746400820950,13.65155317,1811.8,1811.7,7.62284494]
[1746400821151,17.33955317,1811.8,1811.7,5.04777494]
[1746400821354,17.34055317,1811.8,1811.7,0.36021191]
[1746400821556,1.10383,1811.6,1811.5,14.6083389]
[1746400821752,5.03425674,1811.6,1811.5,14.6083389]
[1746400822051,6.8248,1811.6,1811.5,14.96855408]
[1746400822247,4.37338746,1811.8,1811.5,20.24408171]
[1746400822449,3.2078,1811.6,1811.5,15.24408171]
[1746400822654,7.99038746,1811.6,1811.5,14.96855408]
[1746400822853,9.72188746,1811.6,1811.5,15.24408171]
[1746400823051,10.82571746,1811.6,1811.5,14.96855408]
[1746400823251,10.82571746,1811.6,1811.5,14.6083389]
[1746400823452,9.72188746,1811.6,1811.5,14.88386653]
[1746400823761,1.16558746,1811.6,1811.5,6.73963281]
[1746400823959,1.15873421,1811.6,1811.5,49.17313281]
[1746400824157,1.15873421,1811.6,1811.5,8.37313281]
[1746400824657,5.47036421,1811.6,1811.3,0.27552763]
[1746400824857,4.72189,1811.5,1811.3,1.90902763]
[1746400825054,0.5229914,1811.4,1811.3,1.6335]
[1746400825859,0.5229914,1811.4,1811.3,7.73751]
[1746400826063,13.04167923,1811.8,1811.3,6.6335]
[1746400826254,1.6701,1811.7,1811.5,1.10389]
[1746400826558,6.8258,1811.8,1811.6,1.574]
[1746400826860,1.10376,1811.7,1811.6,1.574]
[1746400827051,2.77386,1811.7,1811.6,1.574]
[1746400827252,7.92952,1811.8,1811.6,1.574]
[1746400827457,10.42752,1811.8,1811.6,1.574]
[1746400827957,1.10376,1811.7,1811.6,1.574]
[1746400828161,2.77386,1811.7,1811.6,1.574]
[1746400828359,7.6537,1811.8,1811.6,1.574]
[1746400828553,7.6537,1811.8,1811.6,2.67779]
[1746400828756,1.10386,1811.6,1811.2,45.2687]
[1746400828960,2.7905,1811.7,1811.4,1.10389]
[1746400829260,8.99307196,1812.4,1812.2,1.10346]
[1746400829552,3.64269338,1812.3,1812.2,3.2078]
[1746400829955,4.74609338,1812.3,1812.2,4.8837]
[1746400830150,3.64269338,1812.3,1812.2,5.98716]
[1746400831062,3.64269338,1812.3,1812.2,4.31126]
[1746400831254,3.64269338,1812.3,1812.2,1.10346]
[1746400831452,3.64269338,1812.3,1812.2,4.31126]
[1746400832765,0.2607,1812.4,1812.3,1.1034]
[1746400833064,0.2607,1812.4,1812.3,2.7867]
[1746400833663,0.27593818,1812.8,1812.7,1.10316]
[1746400833963,1.37895818,1813.0,1812.6,3.2078]
[1746400834264,1.37895818,1813.0,1812.8,4.31084]
[1746400834461,1.37895818,1813.0,1812.9,2.78633]
[1746400834658,0.27593818,1813.1,1813.0,1.10297]
[1746400834963,1.10291,1813.1,1813.0,1.10297]
[1746400835463,1.10291,1813.1,1813.0,1.7385]
[1746400835665,2.95973818,1813.2,1813.1,1.10291]
[1746400835967,2.95968818,1813.2,1813.1,1.10291]
[1746400836166,1.85683818,1813.2,1813.1,1.10291]
[1746400836357,2.95968818,1813.2,1813.1,1.10291]
[1746400837565,2.95968818,1813.2,1813.0,2.84143]
[1746400838353,1.85683818,1813.2,1813.1,1.10291]
[1746400840766,0.27593818,1813.2,1813.1,1.10291]
[1746400841668,3.06518818,1813.2,1813.1,1.10291]
[1746400842169,0.27593818,1813.2,1813.1,1.10291]
[1746400842459,8.88909818,1813.4,1813.1,1.10291]
[1746400842768,8.88909818,1813.4,1813.3,1.10279]
[1746400843566,8.88909818,1813.4,1813.2,2.74931]
[1746400843767,1.10279,1813.3,1813.2,2.74931]
[1746400844271,8.88911818,1813.4,1813.2,2.74931]
[1746400844471,3.06511818,1813.4,1813.2,1.6465]
[1746400844660,1.96233818,1813.4,1813.2,2.74935]
[1746400844966,3.06510818,1813.4,1813.2,2.74935]
[1746400845268,1.96233818,1813.4,1813.2,2.74935]
[1746400845468,3.06509818,1813.4,1813.3,1.5695]
[1746400853169,1.10297,1813.0,1812.9,0.7994]
[1746400853366,1.10302,1813.0,1812.8,5.61007]
[1746400853567,1.10302,1813.0,1812.8,7.30967]
[1746400853772,1.10302,1813.0,1812.9,1.6996]
[1746400854674,1.37895818,1813.0,1812.9,1.6996]
[1746400856271,1.1031,1812.8,1812.7,0.804]
[1746400856468,3.10820818,1812.9,1812.7,3.48263]
[1746400856667,3.10816818,1812.9,1812.8,1.5755]
[1746400857673,1.1031,1812.8,1812.7,0.804]
[1746400857875,2.8323,1812.8,1812.7,0.804]
[1746400858774,2.8323,1812.8,1812.7,2.3795]
[1746400860080,3.10823818,1812.8,1812.7,2.3795]
[1746400860381,1.10328,1812.5,1812.3,4.31116]
[1746400860679,1.10326,1812.6,1812.4,1.10333]
[1746400860878,1.10326,1812.6,1812.5,1.6018]
[1746400861179,2.67316,1812.6,1812.5,1.6018]
[1746400861377,2.67316,1812.6,1812.4,1.10333]
[1746400861677,2.67316,1812.6,1812.4,2.70513]
[1746400862181,1.37908818,1812.8,1812.4,4.8096]
[1746400862472,1.37908818,1812.8,1812.6,1.10318]
[1746400862779,5.04997818,1812.9,1812.7,2.78153]
[1746400862978,5.04997818,1812.9,1812.8,1.6784]
[1746400863180,5.34808597,1812.9,1812.8,1.6784]
[1746400863381,5.76917482,1812.9,1812.8,1.6784]
[1746400863582,5.34808597,1812.9,1812.8,1.6784]
[1746400863877,5.34786589,1812.9,1812.8,1.6784]
[1746400864077,7.06286589,1812.9,1812.8,1.6784]
[1746400864682,6.76497818,1812.9,1812.8,1.6784]
[1746400867278,3.09397818,1812.9,1812.8,1.6784]
[1746400867668,0.27593818,1813.0,1812.8,4.8862]
[1746400867875,4.74763818,1813.3,1812.8,13.5572]
[1746400868072,3.94693818,1813.3,1813.2,1.10285]
[1746400868268,0.27593818,1813.3,1813.2,1.10285]
[1746400868475,0.27593818,1813.3,1813.2,3.67215]
[1746400869679,1.37872818,1813.3,1813.2,2.5693]
[1746400870082,0.27593818,1813.3,1812.9,1.94752]
[1746400870277,1.10291,1813.1,1813.0,1.704]
[1746400870470,1.10297,1813.0,1812.9,2.5485]
[1746400870675,1.37890818,1813.0,1812.9,2.5485]
[1746400871186,0.27593818,1813.0,1812.9,2.5485]
[1746400871383,0.27593818,1813.0,1812.9,3.65153]
[1746400871885,2.96128818,1813.1,1812.9,3.65153]
[1746400872087,2.96128818,1813.1,1813.0,1.7023]
[1746400872982,1.10297,1813.0,1812.9,0.8445]
[1746400873191,2.73427,1813.0,1812.9,0.8445]
[1746400874288,3.01020818,1813.0,1812.9,0.8445]
[1746400874481,1.10303,1812.9,1812.8,2.5676]
[1746400874682,2.76343,1812.9,1812.8,2.5676]
[1746400875179,3.03936818,1812.9,1812.8,1.7023]
[1746400875487,3.03941818,1812.9,1812.7,1.10311]
[1746400875682,0.27593818,1813.0,1812.8,1.648]
[1746400875880,1.37890818,1813.0,1812.9,1.10303]
[1746400876081,1.37890818,1813.0,1812.8,2.75105]
[1746400876280,1.37890818,1813.0,1812.9,1.10303]
[1746400876488,1.37890818,1813.0,1812.9,2.75103]
[1746400876690,3.03927818,1813.1,1812.9,2.75103]
[1746400876988,3.03927818,1813.1,1813.0,1.648]
[1746400877689,0.27593818,1813.1,1813.0,2.75097]
[1746400878083,1.6562,1813.3,1813.0,4.8558]
[1746400878278,10.30729788,1813.5,1813.1,3.2999]
[1746400878480,9.20458788,1813.5,1813.4,1.10273]
[1746400878678,10.30726788,1813.5,1813.3,1.10275]
[1746400878985,7.2724497,1813.4,1813.2,1.10281]
[1746400879487,8.3752297,1813.4,1813.2,1.10281]
[1746400879787,8.3752297,1813.4,1813.3,1.10279]
[1746400880590,7.2724497,1813.4,1813.3,4.31059]
[1746400881290,7.2724497,1813.4,1813.3,9.31059]
[1746400882692,8.3749597,1813.8,1813.7,1.10255]
[1746400882892,7.2724497,1813.8,1813.7,4.31035]
[1746400883784,7.2724497,1813.8,1813.7,4.75694793]
[1746400883986,7.2724497,1813.8,1813.7,9.31035]
[1746400884187,7.2724497,1813.8,1813.7,12.98035]
[1746400884683,7.2724497,1813.8,1813.7,48.78035]
[1746400886891,0.27593818,1813.9,1813.8,1.10249]
[1746400888387,0.27593818,1814.0,1813.9,1.10243]
[1746400888587,0.27593818,1814.0,1813.9,4.31023]
[1746400892592,4.29343818,1814.4,1813.9,3.2078]
[1746400892789,8.579,1814.7,1814.3,3.2078]
[1746400892790,2.97653818,1814.5,1814.3,3.2078]
[1746400892990,0.27593818,1814.6,1814.3,3.2078]
[1746400893293,1.10224,1814.2,1814.1,5.97507]
[1746400893488,0.27593818,1814.3,1814.1,4.8728]
[1746400893687,1.10224,1814.2,1814.1,5.97507]
[1746400894093,1.5916,1814.2,1814.1,5.97507]
[1746400894393,2.69384,1814.2,1814.1,5.97507]
[1746400894589,1.5916,1814.2,1814.1,5.97507]
[1746400894993,2.69384,1814.2,1814.1,5.97507]
[1746400895195,6.65777818,1814.2,1814.1,4.8728]
[1746400895492,6.65777818,1814.2,1814.1,1.665]
[1746400896690,6.65777818,1814.2,1814.1,2.7673]
[1746400896891,5.55553818,1814.2,1814.1,2.7673]
[1746400897087,6.65777818,1814.2,1814.1,2.7673]
[1746400897293,6.65777818,1814.2,1814.1,1.665]
[1746400897590,6.65777818,1814.2,1814.1,2.7673]
[1746400898494,6.65777818,1814.2,1814.1,1.665]
[1746400898696,6.65777818,1814.2,1814.1,2.7673]
[1746400900998,1.37823818,1814.1,1814.0,5.60784]
[1746400901491,1.37823818,1814.1,1814.0,7.24764]
[1746400901691,0.27593818,1814.1,1814.0,7.24764]
[1746400902789,0.00617766,1814.2,1814.1,1.1023]
[1746400902992,0.00617766,1814.2,1814.1,5.877]
[1746400904098,0.00617766,1814.2,1814.1,11.775]
[1746400904305,5.36612818,1814.7,1814.6,1.102]
[1746400904306,1.5994,1814.7,1814.6,1.102]
[1746400905200,4.30533818,1814.9,1814.8,1.10188]
[1746400905394,1.09753818,1814.9,1814.8,1.10188]
[1746400905792,2.66963818,1814.9,1814.8,4.30968]
[1746400906301,6.35763818,1814.9,1814.8,4.30968]
[1746400906603,3.688,1814.9,1814.8,4.30968]
[1746400907004,3.688,1814.9,1814.8,9.30968]
[1746400907203,5.47346981,1815.2,1815.1,1.1017]
[1746400907410,5.47346981,1815.2,1815.1,4.3095]
[1746400907799,5.47346981,1815.2,1815.1,5.96]
[1746400908202,9.16146981,1815.2,1815.1,5.96]
[1746400908401,5.63793818,1815.2,1815.1,5.96]
[1746400908596,5.63793818,1815.2,1815.1,1.1017]
[1746400911203,6.73957818,1815.2,1815.1,1.1017]
[1746400911409,6.73957818,1815.2,1815.0,5.2694]
[1746400911708,1.6628,1815.1,1815.0,6.37116]
[1746400912408,1.6628,1815.1,1815.0,1.10176]
[1746400912409,1.93873818,1815.1,1815.0,1.10176]
[1746400913106,5.62673818,1815.1,1815.0,1.10176]
[1746400913617,6.72843818,1815.1,1815.0,1.10176]
[1746400913804,5.62673818,1815.1,1815.0,1.10176]
[1746400915012,5.3508,1815.1,1815.0,1.10176]
[1746400915211,5.3508,1815.1,1815.0,2.82476]
[1746400917115,1.6628,1815.1,1815.0,2.82476]
[1746400917615,1.93873818,1815.1,1815.0,2.82476]
[1746400918102,0.27593818,1815.2,1815.1,1.1017]
[1746400918308,1.37757818,1815.2,1815.1,3.5909]
[1746400918508,3.05437818,1815.2,1815.1,3.5909]
[1746400919210,6.74237818,1815.2,1815.1,3.5909]
[1746400919516,5.64073818,1815.2,1815.1,3.5909]
[1746400920614,6.74237818,1815.2,1815.1,3.5909]
[1746400921014,6.74238818,1815.2,1815.1,1.1017]
[1746400921217,5.64073818,1815.2,1815.1,1.1017]
[1746400922121,6.74237818,1815.2,1815.1,1.1017]
[1746400922415,6.74237818,1815.2,1815.1,3.2078]
[1746400922808,1.10176,1815.0,1814.9,3.2078]
[1746400923010,1.10176,1815.0,1814.9,4.30962]
[1746400923311,3.688,1815.0,1814.9,4.30962]
[1746400923509,3.688,1815.0,1814.9,10.09272]
[1746400923711,3.688,1815.0,1814.9,5.09272]
[1746400924122,0.8405,1815.3,1815.2,1.10164]
[1746400924919,6.11643818,1815.3,1815.1,3.2078]
[1746400925121,1.97363818,1815.2,1815.1,3.2078]
[1746400925321,3.07527818,1815.2,1815.1,3.2078]
[1746400925821,3.85617818,1815.2,1815.1,3.2078]
[1746400926123,5.66163818,1815.2,1815.1,4.3095]
[1746400928125,5.3857,1815.2,1815.1,4.3095]
[1746400928330,5.3857,1815.2,1815.1,5.8851]
[1746400928530,3.688,1815.2,1815.1,5.8851]
[1746400928929,3.688,1815.2,1815.1,11.7831]
[1746400929131,0.27593818,1815.6,1815.5,1.10145]
[1746400929730,2.85293818,1815.7,1815.6,1.10139]
[1746400930229,6.54093818,1815.7,1815.6,1.10139]
[1746400931130,6.265,1815.7,1815.6,2.70689]
[1746400931430,3.688,1815.7,1815.6,5.91469]
[1746400931632,3.688,1815.7,1815.6,9.55669]
[1746400934434,3.96393818,1815.7,1815.6,9.55669]
[1746400934634,5.58233818,1815.7,1815.6,9.55669]
[1746400934837,5.58233818,1815.7,1815.6,6.34889]
[1746400935030,5.58233818,1815.7,1815.6,9.55669]
[1746400938037,1.10148,1815.5,1815.4,3.2078]
[1746400938536,1.37741818,1815.5,1815.4,3.2078]
[1746400938736,7.96481818,1815.5,1815.4,3.2078]
[1746400939041,1.10158,1815.3,1815.1,4.30946]
[1746400939243,1.10164,1815.2,1815.1,4.30946]
[1746400939941,1.10162,1815.3,1815.1,4.30946]
[1746400940238,5.2754,1815.2,1815.1,4.30946]
[1746400940435,6.65297818,1815.2,1815.1,3.2078]
[1746400940737,6.65297818,1815.2,1815.1,1.1017]
[1746400941133,6.65297818,1815.2,1815.0,1.1017]
[1746400941427,1.5874,1815.1,1815.0,1.1017]
[1746400941830,1.5874,1815.1,1815.0,2.7616]
[1746400942339,5.2754,1815.1,1815.0,2.7616]
[1746400942539,6.3771,1815.1,1815.0,2.7616]
[1746400942747,5.2754,1815.1,1815.0,2.7616]
[1746400944144,5.55133818,1815.1,1814.9,1.1018]
[1746400944439,3.58926,1815.0,1814.9,1.1018]
[1746400945038,1.10182,1814.9,1814.8,4.8677]
[1746400945336,1.37787818,1814.7,1814.6,4.30979]
[1746400945636,1.37787818,1814.7,1814.6,45.10979]
[1746400946236,5.06587818,1814.7,1814.6,45.10979]
[1746400946540,5.06587818,1814.7,1814.6,44.0078]
[1746400946739,5.06587818,1814.7,1814.6,3.2078]
[1746400947538,6.76957818,1814.7,1814.6,3.2078]
[1746400951039,1.10204,1814.6,1814.5,1.10206]
[1746400951240,1.5986,1814.6,1814.5,1.10206]
[1746400951443,3.688,1814.7,1814.6,1.102]
[1746400951642,3.688,1814.7,1814.6,5.9794]
[1746400951841,3.688,1814.7,1814.6,7.6375]
[1746400954349,3.688,1814.7,1814.6,4.4297]
[1746400954848,3.688,1814.7,1814.6,7.6375]
[1746400956344,3.83871818,1815.0,1814.8,1.10184]
[1746400956648,1.609,1814.9,1814.8,1.10184]
[1746400957245,6.39882,1814.9,1814.8,1.10184]
[1746400957846,5.297,1814.9,1814.8,1.10184]
[1746400960547,3.688,1814.9,1814.8,1.10184]
[1746400961055,3.96393818,1814.9,1814.8,1.10184]
[1746400961252,3.688,1814.9,1814.8,4.30964]
[1746400961550,3.688,1814.9,1814.8,7.96664]
[1746400962150,0.27593818,1815.1,1815.0,1.10176]
[1746400962448,0.27593818,1815.1,1815.0,4.30956]
[1746400962950,0.27593818,1815.1,1815.0,5.11756]
[1746400963249,3.96393818,1815.1,1815.0,5.11756]
[1746400963750,3.96393818,1815.1,1815.0,5.90096]
[1746400964049,3.688,1815.1,1815.0,5.90096]
[1746400965150,0.27593818,1815.2,1815.1,1.1017]
[1746400965348,0.27593818,1815.2,1815.1,2.7308]
[1746400966242,3.96393818,1815.2,1815.1,2.7308]
[1746400966443,5.65353818,1815.2,1815.1,2.7308]
[1746400966647,6.75517818,1815.2,1815.1,2.7308]
[1746400966853,5.65353818,1815.2,1815.1,2.7308]
[1746400967450,6.75517818,1815.2,1815.1,2.7308]
[1746400967645,6.75517818,1815.2,1815.1,1.6291]
[1746400967851,6.75521818,1815.2,1815.1,1.1017]
[1746400968052,5.65353818,1815.2,1815.1,1.1017]
[1746400968349,3.96393818,1815.2,1815.1,2.7468]
[1746400970053,3.688,1815.2,1815.1,2.7468]
[1746400970352,0.27593818,1815.5,1815.2,1.10164]
[1746400970552,1.37738818,1815.5,1815.4,1.10152]
[1746400970948,3.07508818,1815.5,1815.4,1.10152]
[1746400971151,6.76308818,1815.5,1815.4,1.10152]
[1746400971448,6.76308818,1815.5,1815.4,2.83022]
[1746400973251,1.10152,1815.4,1815.3,5.10364]
[1746400973453,1.10158,1815.3,1815.2,4.3094]
[1746400973652,1.10158,1815.3,1815.2,1.1016]
[1746400973854,2.94818818,1815.4,1815.3,1.10158]
[1746400974151,6.63618818,1815.4,1815.3,1.10158]
[1746400975748,5.53463818,1815.4,1815.3,1.10158]
[1746400977064,3.688,1815.4,1815.3,1.10158]
[1746400977357,3.688,1815.4,1815.3,2.68058]
[1746400982263,1.6299,1815.7,1815.6,1.10139]
[1746400982462,1.6299,1815.7,1815.6,4.30919]
[1746400983168,6.41923,1815.7,1815.6,4.30919]
[1746400983666,6.69516818,1815.7,1815.6,3.2078]
[1746400983966,1.37738818,1815.5,1815.4,1.10149]
[1746400984155,1.37745818,1815.4,1815.3,40.8]
[1746400984360,1.10164,1815.2,1815.1,3.2078]
[1746400984566,1.1017,1815.1,1815.0,1.10175]
[1746400984770,2.7352,1815.1,1815.0,41.90175]
[1746400984967,1.6335,1815.1,1815.0,41.90175]
[1746400985160,1.6335,1815.1,1814.9,4.30959]
[1746400985161,1.10176,1815.0,1814.9,4.30959]
[1746400985360,1.10176,1815.0,1814.9,3.2078]
[1746400985361,2.20269818,1815.0,1814.9,3.2078]
[1746400985562,3.83619818,1815.0,1814.9,3.2078]
[1746400986068,7.52419818,1815.0,1814.9,3.2078]
[1746400987270,1.10188,1814.8,1814.7,7.31554498]
[1746400988167,4.78988,1814.8,1814.7,7.31554498]
[1746400988663,11.1408759,1814.8,1814.7,7.31554498]
[1746400988865,12.7620759,1814.8,1814.7,7.31554498]
[1746400989261,1.1022,1814.3,1814.1,5.10928]
[1746400989461,1.6212,1814.2,1814.1,5.10928]
[1746400990169,5.3092,1814.2,1814.1,5.10928]
[1746400992174,3.688,1814.2,1814.1,5.10928]
[1746400993567,3.66437521,1814.7,1814.6,1.102]
[1746400993765,3.66437521,1814.7,1814.6,7.9438]
[1746400993969,3.66437521,1814.7,1814.6,12.9438]
[1746400994273,3.66437521,1814.7,1814.6,53.7438]
[1746400994963,3.66437521,1814.7,1814.6,55.4504]
[1746400995276,3.66437521,1814.7,1814.6,50.4504]
[1746400995867,1.6558,1815.1,1815.0,1.10176]
[1746400996169,5.3438,1815.1,1815.0,1.10176]
[1746400996372,5.3438,1815.1,1815.0,4.30956]
[1746400996974,3.688,1815.1,1815.0,4.30956]
[1746400997570,3.96393818,1815.1,1815.0,1.10176]
[1746400997969,5.63253818,1815.1,1815.0,1.10176]
[1746400998270,5.63253818,1815.1,1815.0,2.69846]
[1746400998470,6.73423818,1815.1,1814.9,1.91758]
[1746400998767,1.10176,1815.0,1814.9,1.10178]